bitfinex/quotes_SOLUSD_20240816
["timestamp","ask_amount","ask_price","bid_price","bid_amount"]
[1723817058597,0.25098,139.74,139.64,11.5089]
[1723817058833,20.0,139.74,139.64,11.5089]
[1723817059034,20.0,139.74,139.65,7.1605]
[1723817059527,7.56399634,139.81,139.65,7.1605]
[1723817059781,7.43850634,139.81,139.67,0.12549]
[1723817059933,7.43850634,139.81,139.67,1.55500417]
[1723817060208,12.98836916,139.83,139.69,30.1845]
[1723817060422,10.704,139.88,139.71,0.12549]
[1723817060594,10.704,139.88,139.74,7.1561]
[1723817060595,18.13830152,139.88,139.74,7.1561]
[1723817060796,18.13830152,139.88,139.75,45.25098]
[1723817060797,7.43430152,139.88,139.75,45.25098]
[1723817061023,20.0,140.01,139.75,45.25098]
[1723817061024,30.5309,139.95,139.79,30.1845]
[1723817061242,30.5309,139.95,139.81,7.1525]
[1723817061414,30.5309,139.95,139.82,8.70559235]
[1723817061615,28.646728,140.03,139.84,43.7904]
[1723817061885,10.704,140.25,139.84,43.7904]
[1723817061886,31.0227,140.19,139.97,20.0]
[1723817062025,31.0227,140.19,139.98,1.42757082]
[1723817062026,28.613344,140.18,139.98,1.42757082]
[1723817062207,2.85975917,140.13,139.99,1.67871436]
[1723817062409,2.85975917,140.13,139.99,1.55322436]
[1723817062634,2.85975917,140.13,139.99,8.57093436]
[1723817062800,2.85975917,140.13,139.98,45.0]
[1723817063131,28.613344,140.18,139.99,8.69634121]
[1723817063326,28.613344,140.18,140.0,52.1427]
[1723817063533,28.613344,140.18,140.01,1.42743413]
[1723817063701,28.613344,140.18,139.98,85.25098]
[1723817063702,40.0,140.17,139.98,45.0]
[1723817063954,31.41121837,140.18,139.98,45.0]
[1723817063955,20.0,140.14,139.98,45.0]
[1723817064152,20.0,140.14,139.96,1.39855496]
[1723817064328,20.0,140.16,139.96,1.39855496]
[1723817064824,0.12549,140.09,139.96,1.39855496]
[1723817065026,20.0,140.14,139.95,45.0]
[1723817065239,20.0,140.13,139.94,45.0]
[1723817065703,2.77468028,140.11,139.95,1.42826782]
[1723817066082,28.613344,140.18,140.0,7.1425]
[1723817066230,28.613344,140.18,140.01,46.42768638]
[1723817066231,2.81433071,140.15,140.01,46.42768638]
[1723817066434,28.613344,140.18,140.02,1.4275012]
[1723817066621,28.613344,140.18,140.02,1.42731862]
[1723817067506,2.84937205,140.16,140.01,45.0]
[1723817068239,2.84937205,140.16,140.02,1.42777302]
[1723817068424,2.84937205,140.16,140.01,46.42749896]
[1723817068629,2.84937205,140.16,140.02,1.42739701]
[1723817069018,0.12549,140.11,140.01,45.0]
[1723817069210,0.12549,140.11,140.01,1.42770869]
[1723817069878,2.84937205,140.16,140.02,1.42760672]
[1723817070042,0.12549,140.09,140.0,45.0]
[1723817070223,0.12549,140.09,139.95,8.57275262]
[1723817070409,0.12549,140.09,139.94,26.4383696]
[1723817070609,0.12549,140.09,139.95,7.1449]
[1723817070911,0.12549,140.09,139.96,1.4277304]
[1723817071120,0.12549,140.09,139.94,17.8647]
[1723817071317,0.25098,140.09,139.94,17.8647]
[1723817071541,0.25098,140.09,139.95,1.42820588]
[1723817071717,20.25098,140.09,139.94,17.8647]
[1723817072237,20.25098,140.09,139.93,12.1721]
[1723817073536,20.12549,140.09,139.93,50.0372]
[1723817073783,20.0,140.08,139.95,20.0]
[1723817074004,0.8336353,140.1,139.95,20.0]
[1723817074128,0.8336353,140.1,139.98,7.1438]
[1723817074336,0.8336353,140.1,139.99,45.0]
[1723817074941,0.8336353,140.1,140.0,7.26819]
[1723817075126,0.8336353,140.1,140.01,46.42649728]
[1723817075329,0.8336353,140.1,140.01,45.0]
[1723817075538,0.8336353,140.1,140.0,45.0]
[1723817076217,0.8336353,140.1,140.01,0.12549]
[1723817076426,0.8336353,140.1,140.01,1.9287055]
[1723817076619,0.8336353,140.1,140.02,7.1414]
[1723817076822,0.8336353,140.1,140.01,25.24798]
[1723817077039,0.8336353,140.1,140.02,45.0]
[1723817077370,0.8336353,140.1,140.03,0.50196]
[1723817077577,0.8336353,140.1,140.03,407.89566]
[1723817077766,0.8336353,140.1,140.04,45.0]
[1723817078832,0.8336353,140.1,140.03,382.4]
[1723817079062,0.8336353,140.1,140.04,1.42742968]
[1723817079262,0.8336353,140.1,140.03,382.4]
[1723817080455,0.8336353,140.1,140.04,27.1403]
[1723817080635,0.8336353,140.1,140.06,7.1397]
[1723817080841,0.8336353,140.1,140.07,45.4739033]
[1723817081161,0.8336353,140.1,140.08,0.47446602]
[1723817081571,0.8336353,140.1,140.09,1.42675584]
[1723817081734,0.8336353,140.1,140.09,427.4]
[1723817082436,0.8336353,140.1,140.09,434.5382]
[1723817082635,7.43773844,140.21,140.1,7.1375]
[1723817082862,7.43773844,140.21,140.11,45.0]
[1723817083646,14.4185992,140.24,140.11,45.0]
[1723817083834,20.0,140.2,140.12,1.42499576]
[1723817084165,20.0,140.23,140.11,45.0]
[1723817084352,20.83321848,140.23,140.11,45.0]
[1723817084560,20.0,140.23,140.11,45.0]
[1723817085050,0.12549,140.22,140.11,45.0]
[1723817085672,0.12549,140.22,140.1,382.4]
[1723817085969,45.25098,140.22,140.04,640.2]
[1723817086140,0.12549,140.2,140.04,382.4]
[1723817086342,46.08419848,140.2,140.04,382.4]
[1723817086540,0.12549,140.18,140.04,382.4]
[1723817086770,0.25098,140.18,140.04,382.4]
[1723817087176,1.08419848,140.18,140.04,382.4]
[1723817087354,45.25098,140.18,140.04,382.4]
[1723817087674,0.12549,140.16,140.04,382.4]
[1723817087868,0.25098,140.16,140.01,389.5423]
[1723817088170,0.25098,140.16,140.01,382.4]
[1723817088536,0.25098,140.16,140.01,389.5422]
[1723817091486,11.5376353,140.24,140.11,65.99646499]
[1723817091688,0.8336353,140.24,140.14,7.1356]
[1723817091988,0.8336353,140.24,140.15,45.0]
[1723817092167,0.8336353,140.24,140.15,46.42624127]
[1723817092401,0.8336353,140.24,140.16,45.0]
[1723817092568,0.8336353,140.24,140.16,382.4]
[1723817092765,0.8336353,140.24,140.17,45.0]
[1723817093463,0.8336353,140.24,140.17,46.42359027]
[1723817093767,0.8336353,140.24,140.18,1.42341401]
[1723817094105,0.8336353,140.24,140.17,45.0]
[1723817094258,0.8336353,140.24,140.18,1.42309163]
[1723817094975,0.8336353,140.24,140.16,45.0]
[1723817095286,0.8336353,140.24,140.17,1.55139518]
[1723817095487,0.8336353,140.24,140.17,0.12549]
[1723817095689,0.8336353,140.24,140.18,1.42560003]
[1723817095859,0.8336353,140.24,140.18,45.0]
[1723817096368,0.8336353,140.24,140.17,45.12549]
[1723817096972,0.8336353,140.24,140.17,382.4]
[1723817097170,0.8336353,140.24,140.18,45.0]
[1723817097571,0.8336353,140.24,140.18,46.42585373]
[1723817097777,0.8336353,140.24,140.17,382.4]
[1723817098492,0.12549,140.23,140.17,382.4]
[1723817098674,0.25098,140.23,140.17,382.4]
[1723817100180,0.12549,140.23,140.18,45.0]
[1723817100386,0.25098,140.23,140.18,45.0]
[1723817101086,0.8336353,140.24,140.18,45.0]
[1723817102296,0.8336353,140.24,140.17,382.4]
[1723817102471,0.8336353,140.24,140.11,12.3074]
[1723817102472,0.25098,140.23,140.11,382.4]
[1723817102674,0.8336353,140.24,140.13,31.2352]
[1723817102866,0.8336353,140.24,140.16,20.0]
[1723817103068,0.8336353,140.24,140.19,17.8317]
[1723817103264,0.8336353,140.24,140.2,0.98090194]
[1723817103475,0.8336353,140.24,140.21,0.98083198]
[1723817103700,0.8336353,140.24,140.14,20.0]
[1723817103701,0.8336353,140.24,140.17,1.42572739]
[1723817103901,0.8336353,140.24,140.19,1.42572739]
[1723817104074,0.8336353,140.24,140.16,1.42587704]
[1723817104278,0.8336353,140.24,140.18,7.1336]
[1723817104476,0.8336353,140.24,140.19,45.0]
[1723817104694,0.8336353,140.24,140.16,45.0]
[1723817105674,0.12549,140.23,140.17,45.0]
[1723817106410,0.12549,140.23,140.13,382.4]
[1723817106585,0.25098,140.23,140.13,382.4]
[1723817106779,1.08419848,140.23,140.13,382.4]
[1723817107112,0.12549,140.21,140.13,382.4]
[1723817107271,0.12549,140.19,140.08,382.4]
[1723817107474,0.83321848,140.18,140.05,640.2]
[1723817107682,0.12549,140.17,140.05,640.2]
[1723817108178,0.12549,140.18,140.05,640.2]
[1723817108587,0.12549,140.18,140.07,0.12549]
[1723817108784,0.12549,140.19,140.1,7.1377]
[1723817109079,0.12549,140.23,140.1,7.1377]
[1723817109287,0.8336353,140.24,140.11,52.38808]
[1723817109497,0.8336353,140.24,140.12,7.1362]
[1723817109688,0.8336353,140.24,140.13,45.12549]
[1723817109910,0.8336353,140.24,140.13,45.0]
[1723817110220,20.8336353,140.24,140.11,382.4]
[1723817110808,0.12549,140.23,140.11,382.4]
[1723817111019,0.8336353,140.24,140.12,0.12549]
[1723817111247,0.8336353,140.24,140.15,7.1347]
[1723817111400,0.8336353,140.24,140.16,1.55143744]
[1723817111741,0.8336353,140.24,140.16,70.09649]
[1723817111907,0.8336353,140.24,140.18,0.12549]
[1723817112242,0.8336353,140.24,140.18,1.80208213]
[1723817112395,0.8336353,140.24,140.2,17.8315]
[1723817112592,0.8336353,140.24,140.21,0.12549]
[1723817112930,0.8336353,140.24,140.21,45.0]
[1723817113595,0.8336353,140.24,140.22,0.12549]
[1723817114327,0.8336353,140.24,140.2,45.0]
[1723817114511,0.8336353,140.24,140.21,1.42481547]
[1723817114713,0.8336353,140.24,140.2,62.95609]
[1723817115030,0.8336353,140.24,140.14,382.4]
[1723817115231,0.8336353,140.24,140.15,1.42601013]
[1723817115531,0.12549,140.23,140.13,12.1115]
[1723817116027,0.12549,140.23,140.14,1.42596488]
[1723817116245,0.25098,140.23,140.11,7.1371]
[1723817116532,0.25098,140.23,140.1,24.9808]
[1723817116830,0.25098,140.23,140.11,1.42636274]
[1723817117126,0.25098,140.23,140.1,24.9808]
[1723817117494,0.25098,140.23,140.1,26.40726704]
[1723817117806,0.25098,140.23,140.11,8.56366696]
[1723817118206,0.25098,140.23,140.12,45.0]
[1723817118401,0.25098,140.23,140.11,46.42646746]
[1723817118626,0.25098,140.23,140.11,53.56356746]
[1723817118831,0.8336353,140.24,140.12,17.96649]
[1723817119049,0.8336353,140.24,140.13,7.1361]
[1723817119237,0.8336353,140.24,140.14,45.25098]
[1723817119615,0.8336353,140.24,140.14,7.38658]
[1723817119815,0.8336353,140.24,140.15,45.0]
[1723817120441,0.8336353,140.24,140.09,17.8451]
[1723817120741,0.8336353,140.24,140.09,382.4]
[1723817120742,0.95870848,140.23,140.09,382.4]
[1723817120922,0.12549,140.23,140.09,382.4]
[1723817121125,0.25098,140.23,140.09,382.4]
[1723817121449,0.25098,140.23,140.1,1.42665393]
[1723817121611,1.08419848,140.23,140.09,382.4]
[1723817121811,0.25098,140.23,140.09,382.4]
[1723817122010,30.25098,140.23,140.09,389.5381]
[1723817122243,30.0,140.23,140.11,20.0]
[1723817122446,30.0,140.23,140.14,17.8385]
[1723817122622,30.0,140.23,140.15,45.25098]
[1723817122843,30.0,140.23,140.16,1.4261512]
[1723817123015,0.8336353,140.24,140.16,1.4261512]
[1723817123345,0.8336353,140.24,140.16,1.42608485]
[1723817123659,0.8336353,140.24,140.17,0.12549]
[1723817123817,0.8336353,140.24,140.15,45.0]
[1723817124949,0.12549,140.23,140.16,1.4262951]
[1723817125447,0.8336353,140.24,140.15,45.0]
[1723817125649,0.8336353,140.24,140.14,45.0]
[1723817125940,0.8336353,140.24,140.16,0.12549]
[1723817126158,0.8336353,140.24,140.18,7.1336]
[1723817126351,0.8336353,140.24,140.19,1.67639922]
[1723817126522,0.8336353,140.24,140.19,384.07639922]
[1723817126722,0.8336353,140.24,140.2,45.0]
[1723817126942,0.8336353,140.24,140.21,1.42561135]
[1723817127248,0.8336353,140.24,140.22,0.25098]
[1723817127458,0.8336353,140.24,140.23,1.42540802]
[1723817127629,0.8336353,140.24,140.22,45.12549]
[1723817127960,0.8336353,140.24,140.21,1.42390905]
[1723817128252,0.8336353,140.24,140.22,0.25098]
[1723817128440,0.8336353,140.24,140.23,1.42543507]
[1723817128765,0.8336353,140.24,140.22,45.25098]
[1723817128766,0.8336353,140.24,140.22,45.12549]
[1723817128970,0.8336353,140.24,140.21,45.0]
[1723817129142,0.8336353,140.24,140.22,0.25098]
[1723817129336,0.8336353,140.24,140.22,0.12549]
[1723817129645,0.8336353,140.24,140.21,45.0]
[1723817130238,0.8336353,140.24,140.22,0.25098]
[1723817130440,0.8336353,140.24,140.23,8.68201588]
[1723817130738,17.38320554,140.35,140.24,7.1301]
[1723817130739,9.9288,140.35,140.24,7.1301]
[1723817130958,12.71684717,140.35,140.24,389.5301]
[1723817131133,12.71684717,140.35,140.25,45.25098]
[1723817131556,12.71684717,140.35,140.25,0.12549]
[1723817131831,0.12549,140.34,140.24,382.4]
[1723817132174,0.25098,140.34,140.24,382.4]
[1723817132335,0.25098,140.34,140.25,0.12549]
[1723817132336,20.0,140.34,140.25,0.12549]
[1723817132838,20.0,140.34,140.25,45.12549]
[1723817133038,20.0,140.34,140.25,45.0]
[1723817133550,0.12549,140.33,140.25,45.0]
[1723817133761,0.25098,140.33,140.25,45.0]
[1723817135770,0.25098,140.33,140.24,45.0]
[1723817136185,1.91741696,140.33,140.23,382.4]
[1723817136358,0.25098,140.33,140.2,382.4]
[1723817136554,0.25098,140.33,140.22,7.1315]
[1723817136751,0.12549,140.33,140.2,382.4]
[1723817137460,0.12549,140.33,140.21,45.50196]
[1723817137885,2.78804717,140.35,140.23,17.8278]
[1723817138191,20.8336353,140.38,140.24,45.0]
[1723817138391,1.66643696,140.36,140.24,45.0]
[1723817138574,1.66643696,140.35,140.24,45.0]
[1723817138768,1.66643696,140.35,140.2,382.4]
[1723817139081,0.12549,140.34,140.2,382.4]
[1723817139267,23.70596306,140.38,140.2,382.4]
[1723817139473,23.70596306,140.38,140.22,7.1312]
[1723817139675,23.70596306,140.38,140.2,382.4]
[1723817139676,23.70596306,140.38,140.21,24.9613]
[1723817139886,25.37240002,140.38,140.21,24.9613]
[1723817140085,23.70596306,140.38,140.22,45.25098]
[1723817140388,3.70596306,140.38,140.23,0.12549]
[1723817140686,46.27529536,140.38,140.23,0.25098]
[1723817140866,3.70596306,140.38,140.24,0.25098]
[1723817141066,48.70596306,140.38,140.22,52.38218]
[1723817141273,42.5693323,140.37,140.22,52.38218]
[1723817141589,51.68975068,140.37,140.22,382.65098]
[1723817141789,65.12549,140.36,140.22,382.4]
[1723817141957,0.12549,140.34,140.22,382.4]
[1723817142285,1.66643696,140.33,140.23,0.12549]
[1723817142498,20.12549,140.34,140.22,382.4]
[1723817142792,0.12549,140.32,140.22,382.4]
[1723817143457,1.79192696,140.32,140.22,380.4904]
[1723817143656,0.12549,140.31,140.22,380.4904]
[1723817144399,0.12549,140.29,140.18,12.2492]
[1723817144764,1.91741696,140.29,140.13,405.0701]
[1723817144964,0.12549,140.24,140.13,405.0701]
[1723817145166,20.25098,140.24,140.13,405.0701]
[1723817145577,0.12549,140.22,140.13,405.0701]
[1723817145777,0.12549,140.22,140.13,24.5797]
[1723817145979,0.12549,140.22,140.14,1.05073236]
[1723817146191,0.12549,140.23,140.13,24.5797]
[1723817146192,0.25098,140.23,140.13,24.5797]
[1723817146401,30.25098,140.23,140.13,24.5797]
[1723817146601,0.12549,140.21,140.13,24.5797]
[1723817147278,0.25098,140.21,140.13,24.5797]
[1723817147878,0.12549,140.21,140.14,1.42614498]
[1723817148087,0.12549,140.22,140.15,1.42604322]
[1723817148395,0.12549,140.22,140.13,24.5797]
[1723817148598,0.25098,140.22,140.13,24.5797]
[1723817148808,0.12549,140.22,140.14,46.12318236]
[1723817149024,20.0,140.31,140.15,0.25098]
[1723817149322,1.66643696,140.3,140.15,380.4904]
[1723817149528,1.66643696,140.29,140.16,45.0]
[1723817149886,1.66643696,140.29,140.15,380.4904]
[1723817150312,1.66643696,140.29,140.13,24.5797]
[1723817150313,0.12549,140.27,140.08,6.8673]
[1723817150520,1.91741696,140.27,140.08,405.2036]
[1723817150813,0.12549,140.25,140.08,387.3577]
[1723817151033,0.12549,140.23,140.08,387.3577]
[1723817151195,0.12549,140.2,140.09,8.56482312]
[1723817151395,0.12549,140.23,140.09,8.56482312]
[1723817151396,0.12549,140.23,140.1,7.1375]
[1723817151606,20.0,140.25,140.12,0.12549]
[1723817151807,30.0,140.21,140.13,1.42616856]
[1723817152141,7.43759523,140.25,140.13,45.0]
[1723817152142,20.0,140.2,140.13,45.0]
[1723817152420,20.0,140.2,140.13,45.58141981]
[1723817152629,20.0,140.2,140.14,0.12549]
[1723817152797,0.12549,140.23,140.14,0.12549]
[1723817153316,0.25098,140.23,140.13,45.0]
[1723817154294,3.02856719,140.23,140.13,45.0]
[1723817154631,0.25098,140.23,140.14,1.55005019]
[1723817154793,20.0,140.24,140.14,1.67554019]
[1723817154997,7.43759523,140.25,140.15,0.12549]
[1723817155222,42.59324052,140.39,140.15,389.30083854]
[1723817155405,7.44399912,140.3,140.16,45.25098]
[1723817155600,21.66643696,140.35,140.16,425.61589]
[1723817155825,7.44796373,140.29,140.17,25.5276]
[1723817155988,7.44796373,140.29,140.19,7.1329]
[1723817156194,3.68084613,140.38,140.2,45.25098]
[1723817156514,3.68084613,140.38,140.21,1.42557892]
[1723817156515,7.44499629,140.33,140.21,1.42557892]
[1723817156717,3.68084613,140.38,140.2,425.74138]
[1723817157017,7.4455419,140.33,140.21,0.12549]
[1723817157219,3.68084613,140.38,140.22,7.1311]
[1723817157397,7.44459508,140.35,140.23,1.42321236]
[1723817157734,3.68084613,140.38,140.24,1.67614102]
[1723817158034,7.44482554,140.35,140.23,45.0]
[1723817158193,3.68084613,140.38,140.23,45.0]
[1723817158194,0.8336353,140.38,140.23,45.0]
[1723817158400,7.44244447,140.35,140.22,45.12549]
[1723817158727,0.8336353,140.38,140.24,7.4243]
[1723817158929,7.445392,140.35,140.25,1.67577921]
[1723817159097,0.8336353,140.38,140.26,18.5305]
[1723817159298,7.4243,140.37,140.27,45.25098]
[1723817159519,7.4243,140.37,140.27,45.12549]
[1723817159714,7.4243,140.37,140.27,45.0]
[1723817160639,7.4243,140.37,140.26,399.0209]
[1723817160791,20.12549,140.36,140.28,45.0]
[1723817160996,20.12549,140.36,140.27,45.0]
[1723817161304,0.12549,140.35,140.26,380.4904]
[1723817161523,45.12549,140.35,140.2,398.3334]
[1723817161709,45.12549,140.35,140.2,17.843]
[1723817161710,0.12549,140.33,140.2,17.843]
[1723817161895,0.12549,140.33,140.19,6.8378]
[1723817161896,0.12549,140.27,140.19,6.8378]
[1723817162236,20.25098,140.27,140.19,6.8378]
[1723817162526,20.25098,140.27,140.15,17.881]
[1723817162713,0.12549,140.25,140.15,17.881]
[1723817163031,30.12549,140.25,140.16,1.42604265]
[1723817163216,20.0,140.24,140.16,21.42604265]
[1723817163415,20.0,140.24,140.17,7.1337]
[1723817163841,20.0,140.32,140.18,0.12549]
[1723817164043,20.0,140.32,140.19,7.1327]
[1723817164044,0.12549,140.31,140.19,7.1327]
[1723817164244,7.4243,140.37,140.2,53.80909728]
[1723817164424,7.4243,140.37,140.22,6.90189]
[1723817164615,7.4243,140.37,140.23,45.12549]
[1723817164822,7.4243,140.37,140.23,45.0]
[1723817165322,1.66643696,140.36,140.22,6.7764]
[1723817165650,1.66643696,140.35,140.22,6.7764]
[1723817165816,10.26596545,140.37,140.22,7.48956503]
[1723817165817,1.66643696,140.36,140.22,7.48956503]
[1723817166022,10.26596545,140.37,140.22,7.48956503]
[1723817166233,20.0,140.36,140.22,7.48956503]
[1723817166428,0.25098,140.35,140.22,7.48956503]
[1723817166634,45.25098,140.35,140.23,45.0]
[1723817166935,0.12549,140.33,140.23,45.0]
[1723817167244,62.82253138,140.33,140.23,45.0]
[1723817167446,0.12549,140.33,140.23,45.0]
[1723817167632,42.57155138,140.35,140.23,45.0]
[1723817167633,10.26596545,140.37,140.24,17.35876674]
[1723817167823,10.26596545,140.37,140.25,66.43]
[1723817168162,2.84166545,140.37,140.27,0.12549]
[1723817168336,0.8336353,140.38,140.27,381.91512159]
[1723817168656,3.67965886,140.38,140.28,45.25098]
[1723817168827,0.8336353,140.38,140.29,6.3695]
[1723817169027,0.8336353,140.38,140.3,45.0]
[1723817169741,0.8336353,140.38,140.3,425.4904]
[1723817169932,0.8336353,140.38,140.32,0.12549]
[1723817170135,0.8336353,140.38,140.33,15.4617]
[1723817170356,0.8336353,140.38,140.34,46.42430683]
[1723817170654,10.265966,140.44,140.37,20.12549]
[1723817170830,10.265966,140.44,140.39,0.12549]
[1723817171035,0.8336353,140.52,140.4,1.42374294]
[1723817171236,0.8336353,140.52,140.41,0.37647]
[1723817171237,3.62448183,140.52,140.41,0.37647]
[1723817171450,0.8336353,140.52,140.44,23.1514]
[1723817171756,0.8336353,140.52,140.45,46.7994952]
[1723817171948,0.8336353,140.52,140.46,1.42289168]
[1723817172153,0.8336353,140.52,140.45,45.37647]
[1723817172375,0.8336353,140.52,140.45,45.25098]
[1723817172530,0.8336353,140.52,140.46,1.42249823]
[1723817172728,0.8336353,140.52,140.45,45.0]
[1723817173623,0.8336353,140.52,140.44,23.1514]
[1723817174066,0.8336353,140.52,140.38,23.5587]
[1723817174230,0.25098,140.51,140.39,1.42373693]
[1723817174557,0.25098,140.51,140.38,23.5587]
[1723817175451,20.25098,140.51,140.39,1.42349271]
[1723817175759,0.12549,140.49,140.4,1.42339132]
[1723817176055,3.63003258,140.52,140.41,0.12549]
[1723817176250,3.63003258,140.52,140.42,1.42313709]
[1723817176435,3.63003258,140.52,140.43,0.25098]
[1723817176836,3.63003258,140.52,140.44,0.12549]
[1723817177142,3.63003258,140.52,140.44,382.4]
[1723817177549,3.63003258,140.52,140.45,45.0]
[1723817180465,3.63003258,140.52,140.46,0.12549]
[1723817180642,3.63003258,140.52,140.45,0.12549]
[1723817181233,3.63003258,140.52,140.45,382.77647]
[1723817181446,3.63003258,140.52,140.46,45.0]
[1723817185669,3.63003258,140.52,140.45,382.4]
[1723817185838,0.12549,140.51,140.4,382.4]
[1723817186041,1.91741696,140.51,140.4,382.4]
[1723817186273,65.25098,140.51,140.4,382.4]
[1723817186783,66.91741696,140.51,140.4,382.4]
[1723817187356,65.25098,140.51,140.38,23.5587]
[1723817187574,65.25098,140.51,140.32,17.8158]
[1723817187575,0.12549,140.45,140.32,6.7909]
[1723817187770,20.25098,140.45,140.32,389.1909]
[1723817188648,30.0,140.44,140.32,409.1909]
[1723817188849,0.12549,140.5,140.34,27.1251]
[1723817189051,0.25098,140.5,140.34,20.0]
[1723817189477,0.12549,140.5,140.34,27.1254]
[1723817189681,0.12549,140.5,140.35,52.1246]
[1723817189856,0.12549,140.51,140.35,45.0]
[1723817190058,0.12549,140.51,140.34,45.0]
[1723817190666,0.12549,140.5,140.34,45.0]
[1723817191084,0.12549,140.5,140.33,382.4]
[1723817191382,30.0,140.43,140.32,6.7909]
[1723817191681,30.0,140.43,140.36,20.0]
[1723817191886,2.86243864,140.51,140.37,0.84911784]
[1723817192051,0.8336353,140.52,140.37,383.82370789]
[1723817192458,3.722353,140.52,140.37,383.82370789]
[1723817192657,7.44406407,140.51,140.38,45.0]
[1723817192956,0.12549,140.5,140.37,382.4]
[1723817193166,7.44406407,140.51,140.38,45.0]
[1723817194202,7.44406407,140.51,140.39,0.25098]
[1723817194501,7.44406407,140.51,140.38,45.0]
[1723817194866,0.12549,140.5,140.38,45.0]
[1723817195075,66.91741696,140.5,140.32,646.9909]
[1723817195503,0.12549,140.41,140.32,382.4]
[1723817195704,66.91741696,140.41,140.26,6.3291]
[1723817195865,65.25098,140.41,140.26,388.7291]
[1723817196071,66.91741696,140.41,140.26,388.7291]
[1723817196298,66.91741696,140.41,140.26,6.3291]
[1723817196507,0.12549,140.39,140.26,6.3291]
[1723817196802,66.91741696,140.39,140.22,383.11316503]
[1723817196977,65.25098,140.39,140.22,383.11316503]
[1723817197174,0.12549,140.37,140.22,383.11316503]
[1723817197493,30.25098,140.37,140.22,383.11316503]
[1723817197698,0.12549,140.35,140.22,383.11316503]
[1723817197903,0.25098,140.35,140.22,383.11316503]
[1723817198397,20.0,140.36,140.23,20.0]
[1723817198602,30.0,140.35,140.26,0.12549]
[1723817198899,20.0,140.34,140.25,45.12549]
[1723817199115,20.0,140.34,140.25,45.0]
[1723817199275,20.0,140.34,140.22,383.11316503]
[1723817199695,0.12549,140.32,140.22,383.11316503]
[1723817199997,20.12549,140.32,140.22,383.11316503]
[1723817200409,20.0,140.32,140.22,383.11316503]
[1723817200594,20.0,140.32,140.23,52.63296]
[1723817200774,0.12549,140.37,140.23,45.50196]
[1723817200973,20.0,140.44,140.23,447.90196]
[1723817201175,20.0,140.44,140.24,17.8259]
[1723817201486,20.0,140.44,140.25,45.25098]
[1723817201674,40.0,140.45,140.25,45.25098]
[1723817201872,20.0,140.44,140.25,0.25098]
[1723817202210,20.12549,140.42,140.24,45.0]
[1723817202384,0.12549,140.4,140.23,382.4]
[1723817202583,0.12549,140.38,140.23,382.4]
[1723817202902,0.12549,140.38,140.22,0.71316503]
[1723817203082,0.12549,140.36,140.22,0.71316503]
[1723817203282,65.25098,140.36,140.22,0.71316503]
[1723817203977,20.12549,140.36,140.23,0.12549]
[1723817204284,20.12549,140.36,140.22,0.71316503]
[1723817204486,20.12549,140.36,140.22,45.71316503]
[1723817204697,20.12549,140.36,140.23,0.37647]
[1723817204870,7.43234087,140.37,140.24,0.12549]
[1723817205074,7.43234087,140.37,140.24,45.12549]
[1723817205276,2.84198469,140.38,140.25,45.25098]
[1723817205475,7.42974973,140.36,140.25,45.0]
[1723817205701,7.42974973,140.36,140.26,0.37647]
[1723817205918,20.0,140.47,140.27,0.12549]
[1723817206086,20.0,140.47,140.27,427.52549]
[1723817206289,7.43285052,140.39,140.27,427.4]
[1723817206481,20.12549,140.38,140.27,45.0]
[1723817206688,27.55772067,140.38,140.27,45.0]
[1723817207801,0.12549,140.37,140.27,45.0]
[1723817208185,27.55772067,140.38,140.28,0.25098]
[1723817208186,27.43223067,140.38,140.28,0.25098]
[1723817208382,28.560126,140.46,140.28,382.65098]
[1723817208606,7.43223244,140.4,140.29,45.0]